[Event "Marmaris Karya-13 IM 2022"]
[Site "Icmeler-Marmaris"]
[Date "2022.01.26"]
[Round "6.4"]
[White "Haussernot, Cecile"]
[Black "Ozsakallioglu, Okan"]
[Result "1-0"]
[ECO "B40"]
[WhiteElo "2188"]
[BlackElo "2179"]
[Annotator "RC"]
[PlyCount "73"]
[EventDate "2022.01.27"]
[EventType "schev"]
[EventCountry "TUR"]
[SourceTitle "playchess.com"]
[Source "ChessBase"]
[SourceQuality "1"]
[TimeControl "5400+30"]

1. e4 {[%emt 0:07:00]} c5 {[%emt 0:01:00]} 2. Nf3 {[%emt 0:00:30]} e6 {[%emt 0:00:00]} 3. d4 {[%emt 0:00:00]} cxd4 {[%emt 0:00:00]} 4. Nxd4 {[%emt 0:00:00]} Nf6 {[%emt 0:00:30]} 5. Bd3 {[%emt 0:00:30]} Nc6 {[%emt 0:01:30]} 6. Nxc6 {[%emt 0:01:30]} bxc6 {[%emt 0:00:00]} 7. O-O {[%emt 0:00:30]} d5 {[%emt 0:00:00]} 8. Qe2 {[%emt 0:02:30]} Be7 {[%emt 0:00:30]} 9. b3 {[%emt 0:01:30]} O-O {[%emt 0:01:30]} 10. Bb2 {[%emt 0:01:30]} a5 {[%emt 0:00:30]} 11. Nd2 {[%emt 0:13:30]} a4 {[%emt 0:00:30]} 12. Rab1 {[%emt 0:01:30]} axb3 {[%emt 0:01:30]} 13. axb3 {[%emt 0:00:30]} Nd7 {[%emt 0:00:30]} 14. c4 {[%emt 0:01:30]} Nc5 {[%emt 0:02:30]} 15. b4 {[%emt 0:10:30]} Nxd3 {[%emt 0:02:30]} 16. Qxd3 {[%emt 0:00:00]} dxc4 {[%emt 0:00:00]} 17. Qc3 {[%emt 0:03:00]} Bf6 {[%emt 0:11:00]} 18. e5 {[%emt 0:00:30]} Be7 {[%emt 0:00:30]} 19. Nxc4 {[%emt 0:00:30]} Ba6 {[%emt 0:00:30]} 20. Rfd1 {[%emt 0:01:30]} Qc7 {[%emt 0:00:30]} 21. Nd6 {[%emt 0:00:30]} Qb6 {[%emt 0:01:30]} 22. Bc1 {[%emt 0:02:30]} Bxd6 {[%emt 0:08:30]} 23. exd6 {[%emt 0:00:30]} Be2 {[%emt 0:00:30]} 24. Be3 {[%emt 0:07:30]} Qb5 {[%emt 0:00:30]} 25. Rdc1 {[%emt 0:03:30]} Bd3 {[%emt 0:01:30]} 26. Ra1 {[%emt 0:01:30]} Be4 {[%emt 0:00:30]} 27. Bc5 {[%emt 0:00:30]} Rad8 {[%emt 0:07:30]} 28. d7 {[%emt 0:01:30]} Rxd7 {[%emt 0:00:30]} 29. Bxf8 {[%emt 0:00:30]} Kxf8 {[%emt 0:01:30]} 30. Ra8+ {[%emt 0:00:30]} Ke7 {[%emt 0:00:00]} 31. Qxg7 {[%emt 0:00:30]} Qh5 {[%emt 0:02:00]} 32. Qf8+ {[%emt 0:03:30]} Kf6 {[%emt 0:00:30]} 33. Qh8+ {[%emt 0:00:00]} Kf5 {[%emt 0:00:00]} 34. f3 {[%emt 0:01:00]} Bxf3 {[%emt 0:00:00]} 35. Rf1 {[%emt 0:00:30]} Rd1 {[%emt 0:01:30]} 36. Rxd1 {[%emt 0:01:30]} Qg5 {[%emt 0:00:30]} 37. Ra5+ {[%emt 0:00:30]} 1-0

[Event "Marmaris Karya-13 IM 2022"]
[Site "Icmeler-Marmaris"]
[Date "2022.01.26"]
[Round "8.2"]
[White "Haussernot, Cecile"]
[Black "Blesic, Vaso"]
[Result "1/2-1/2"]
[ECO "B12"]
[WhiteElo "2188"]
[BlackElo "2276"]
[Annotator "ChessBase"]
[PlyCount "64"]
[EventDate "2022.01.27"]
[EventType "schev"]
[EventCountry "TUR"]
[SourceTitle "playchess.com"]
[Source "ChessBase"]
[SourceQuality "1"]
[TimeControl "5400+30"]

1. e4 {[%emt 0:04:00]} c6 {[%emt 0:01:00]} 2. d4 {[%emt 0:00:30]} d5 {[%emt 0:00:30]} 3. e5 {[%emt 0:01:30]} Bf5 {[%emt 0:00:00]} 4. Nf3 {[%emt 0:00:30]} e6 {[%emt 0:00:00]} 5. Be2 {[%emt 0:00:30]} Nd7 {[%emt 0:04:30]} 6. O-O {[%emt 0:03:30]} h6 {[%emt 0:00:30]} 7. b3 {[%emt 0:00:30]} Ne7 {[%emt 0:00:30]} 8. c4 {[%emt 0:04:30]} Bh7 {[%emt 0:02:30]} 9. Ba3 {[%emt 0:02:30]} c5 {[%emt 0:06:30]} 10. Nc3 {[%emt 0:05:30]} dxc4 {[%emt 0:03:30]} 11. d5 {[%emt 0:05:30]} Nxd5 {[%emt 0:07:30]} 12. Nxd5 {[%emt 0:00:30]} exd5 {[%emt 0:00:00]} 13. Qxd5 {[%emt 0:03:30]} Nb6 {[%emt 0:05:00]} 14. Qxb7 {[%emt 0:00:30]} Qc8 {[%emt 0:02:30]} 15. Qxc8+ {[%emt 0:00:00]} Rxc8 {[%emt 0:00:00]} 16. bxc4 {[%emt 0:04:00]} g5 {[%emt 0:00:00]} 17. Rfe1 {[%emt 0:06:30]} Bg7 {[%emt 0:00:30]} 18. h4 {[%emt 0:03:30]} g4 {[%emt 0:01:30]} 19. Nh2 {[%emt 0:00:30]} h5 {[%emt 0:00:00]} 20. f3 {[%emt 0:00:30]} O-O {[%emt 0:01:00]} 21. fxg4 {[%emt 0:02:30]} Bxe5 {[%emt 0:00:30]} 22. Rad1 {[%emt 0:01:30]} Bg3 {[%emt 0:03:30]} 23. Rf1 {[%emt 0:00:00]} Rfe8 {[%emt 0:00:00]} 24. Bd3 {[%emt 0:01:00]} Bxd3 {[%emt 0:00:00]} 25. Rxd3 {[%emt 0:01:30]} Bxh4 {[%emt 0:01:30]} 26. gxh5 {[%emt 0:08:30]} Nxc4 {[%emt 0:00:30]} 27. Bc1 {[%emt 0:02:30]} Re4 {[%emt 0:08:30]} 28. Rd7 {[%emt 0:11:30]} Re7 {[%emt 0:02:30]} 29. Rxe7 {[%emt 0:01:30]} Bxe7 {[%emt 0:00:30]} 30. Ng4 {[%emt 0:00:00]} Nd6 {[%emt 0:00:30]} 31. Re1 {[%emt 0:02:00]} Bh4 {[%emt 0:00:30]} 32. Rd1 {[%emt 0:01:30]} Rd8 {[%emt 0:07:30]} 1/2-1/2

[Event "Marmaris Karya-13 IM 2022"]
[Site "Icmeler-Marmaris"]
[Date "2022.01.26"]
[Round "8.3"]
[White "Kirilmaz, Emre"]
[Black "Darban, Morteza"]
[Result "0-1"]
[ECO "A45"]
[WhiteElo "2229"]
[BlackElo "2261"]
[Annotator "ChessBase"]
[PlyCount "102"]
[EventDate "2022.01.27"]
[EventType "schev"]
[EventCountry "TUR"]
[SourceTitle "playchess.com"]
[Source "ChessBase"]
[SourceQuality "1"]
[TimeControl "5400+30"]

1. d4 {[%emt 0:02:00]} Nf6 {[%emt 0:01:00]} 2. c3 {[%emt 0:00:00]} d6 {[%emt 0:00:00]} 3. Bg5 {[%emt 0:00:00]} Nbd7 {[%emt 0:00:00]} 4. Nd2 {[%emt 0:00:30]} e5 {[%emt 0:00:30]} 5. e4 {[%emt 0:00:30]} Be7 {[%emt 0:00:00]} 6. Ngf3 {[%emt 0:02:30]} O-O {[%emt 0:04:00]} 7. Bc4 {[%emt 0:02:30]} exd4 {[%emt 0:01:30]} 8. cxd4 {[%emt 0:00:30]} d5 {[%emt 0:00:00]} 9. exd5 {[%emt 0:01:30]} Nb6 {[%emt 0:00:00]} 10. O-O {[%emt 0:00:30]} Nxc4 {[%emt 0:00:30]} 11. Nxc4 {[%emt 0:00:30]} Nxd5 {[%emt 0:00:30]} 12. Bxe7 {[%emt 0:00:30]} Qxe7 {[%emt 0:00:30]} 13. Re1 {[%emt 0:00:00]} Qf6 {[%emt 0:05:30]} 14. Re5 {[%emt 0:02:00]} Nf4 {[%emt 0:05:30]} 15. Ne3 {[%emt 0:00:30]} h6 {[%emt 0:07:30]} 16. g3 {[%emt 0:48:30]} Ng6 {[%emt 0:08:30]} 17. Rh5 {[%emt 0:04:30]} c6 {[%emt 0:13:30]} 18. Ne5 {[%emt 0:03:30]} Be6 {[%emt 0:00:30]} 19. f4 {[%emt 0:00:30]} Rad8 {[%emt 0:13:30]} 20. Nxg6 {[%emt 0:03:30]} fxg6 {[%emt 0:01:30]} 21. Re5 {[%emt 0:01:30]} Rd7 {[%emt 0:00:30]} 22. Qa4 {[%emt 0:03:30]} a6 {[%emt 0:07:30]} 23. Re1 {[%emt 0:03:09]} Kh7 {[%emt 0:05:30]} 24. a3 {[%emt 0:05:44]} Rfd8 {[%emt 0:00:30]} 25. Qb4 {[%emt 0:00:42]} Qf7 {[%emt 0:03:30]} 26. Nc2 {[%emt 0:01:02]} Bf5 {[%emt 0:00:30]} 27. Re7 {[%emt 0:00:21]} Qf6 {[%emt 0:00:30]} 28. Rxd7 {[%emt 0:02:08]} Rxd7 {[%emt 0:00:00]} 29. Ne3 {[%emt 0:00:14]} Qxd4 {[%emt 0:03:14]} 30. Qxd4 {[%emt 0:00:30]} Rxd4 {[%emt 0:00:01]} 31. Rd1 {[%emt 0:03:15]} Rxd1+ {[%emt 0:02:43]} 32. Nxd1 {[%emt 0:00:08]} Kg8 {[%emt 0:01:16]} 33. Kf2 {[%emt 0:00:45]} Kf7 {[%emt 0:00:07]} 34. Ke3 {[%emt 0:00:15]} c5 {[%emt 0:00:58]} 35. Kd2 {[%emt 0:02:01]} Ke7 {[%emt 0:00:33]} 36. Ne3 {[%emt 0:00:38]} Be6 {[%emt 0:00:02]} 37. Kc3 {[%emt 0:01:38]} Kd6 {[%emt 0:01:11]} 38. a4 {[%emt 0:05:51]} b6 {[%emt 0:02:15]} 39. b3 {[%emt 0:01:36]} h5 {[%emt 0:00:11]} 40. a5 {[%emt 0:00:31]} bxa5 {[%emt 0:00:44]} 41. Kb2 {[%emt 0:00:30]} Kc6 {[%emt 0:02:16]} 42. Nc4 {[%emt 0:00:28]} Kd5 {[%emt 0:03:57]} 43. Kc3 {[%emt 0:00:31]} Ke4 {[%emt 0:01:28]} 44. Nxa5 {[%emt 0:00:16]} Kf3 {[%emt 0:03:19]} 45. Nb7 {[%emt 0:00:22]} Kg2 {[%emt 0:00:09]} 46. Nxc5 {[%emt 0:00:18]} Bc8 {[%emt 0:00:02]} 47. Kd4 {[%emt 0:01:04]} Kxh2 {[%emt 0:00:07]} 48. Ne4 {[%emt 0:00:30]} Bf5 {[%emt 0:01:20]} 49. Nc5 {[%emt 0:00:31]} Kxg3 {[%emt 0:00:08]} 50. Nxa6 {[%emt 0:00:23]} h4 {[%emt 0:00:03]} 51. Nb4 {[%emt 0:00:13]} h3 {[%emt 0:00:23]} 0-1

[Event "Marmaris Karya-13 IM 2022"]
[Site "Icmeler-Marmaris"]
[Date "2022.01.26"]
[Round "8.5"]
[White "Karadag, Eflatun Cem"]
[Black "Ahmad, Al Khatib"]
[Result "0-1"]
[ECO "B13"]
[WhiteElo "1827"]
[BlackElo "2218"]
[Annotator "ChessBase"]
[PlyCount "86"]
[EventDate "2022.01.27"]
[EventType "schev"]
[EventCountry "TUR"]
[SourceTitle "playchess.com"]
[Source "ChessBase"]
[SourceQuality "1"]
[TimeControl "5400+30"]

1. e4 {[%emt 0:01:00]} c6 {[%emt 0:01:00]} 2. d4 {[%emt 0:00:00]} d5 {[%emt 0:00:00]} 3. exd5 {[%emt 0:00:00]} cxd5 {[%emt 0:00:00]} 4. Bd3 {[%emt 0:00:30]} Nf6 {[%emt 0:00:00]} 5. c3 {[%emt 0:01:30]} Bg4 {[%emt 0:00:00]} 6. Qb3 {[%emt 0:00:30]} Qd7 {[%emt 0:00:30]} 7. f3 {[%emt 0:02:30]} Bh5 {[%emt 0:00:30]} 8. Ne2 {[%emt 0:04:30]} Nc6 {[%emt 0:01:30]} 9. Bf4 {[%emt 0:02:30]} e6 {[%emt 0:00:30]} 10. Nd2 {[%emt 0:03:30]} Bd6 {[%emt 0:05:30]} 11. O-O {[%emt 0:03:30]} O-O {[%emt 0:00:30]} 12. Rfe1 {[%emt 0:05:30]} Bg6 {[%emt 0:03:30]} 13. Bxg6 {[%emt 0:05:30]} hxg6 {[%emt 0:00:30]} 14. Bxd6 {[%emt 0:03:30]} Qxd6 {[%emt 0:00:00]} 15. a4 {[%emt 0:01:30]} Rfe8 {[%emt 0:08:00]} 16. Rad1 {[%emt 0:04:30]} Qc7 {[%emt 0:02:30]} 17. Nc1 {[%emt 0:05:30]} e5 {[%emt 0:06:30]} 18. dxe5 {[%emt 0:00:30]} Nxe5 {[%emt 0:00:30]} 19. Qb4 {[%emt 0:01:30]} Re6 {[%emt 0:07:30]} 20. Qd4 {[%emt 0:03:30]} Rae8 {[%emt 0:02:30]} 21. g3 {[%emt 0:08:30]} Nc6 {[%emt 0:04:30]} 22. Qf2 {[%emt 0:01:30]} Rxe1+ {[%emt 0:00:30]} 23. Rxe1 {[%emt 0:00:30]} Rxe1+ {[%emt 0:00:00]} 24. Qxe1 {[%emt 0:00:30]} Qb6+ {[%emt 0:00:00]} 25. Kf1 {[%emt 0:06:30]} Qxb2 {[%emt 0:01:30]} 26. Ne2 {[%emt 0:00:30]} Qc2 {[%emt 0:03:30]} 27. g4 {[%emt 0:06:30]} Qxa4 {[%emt 0:03:30]} 28. g5 {[%emt 0:00:30]} Nh5 {[%emt 0:01:30]} 29. Ng3 {[%emt 0:02:30]} Nxg3+ {[%emt 0:03:30]} 30. hxg3 {[%emt 0:00:30]} Nd8 {[%emt 0:04:30]} 31. Qe3 {[%emt 0:03:30]} Ne6 {[%emt 0:00:30]} 32. Ke2 {[%emt 0:02:30]} d4 {[%emt 0:11:30]} 33. cxd4 {[%emt 0:01:30]} Qxd4 {[%emt 0:00:30]} 34. Qxd4 {[%emt 0:01:50]} Nxd4+ {[%emt 0:00:30]} 35. Kd3 {[%emt 0:00:10]} Ne6 {[%emt 0:00:30]} 36. f4 {[%emt 0:00:30]} Kf8 {[%emt 0:00:30]} 37. Kc4 {[%emt 0:00:49]} Ke7 {[%emt 0:00:30]} 38. Kd5 {[%emt 0:00:50]} Nc7+ {[%emt 0:01:30]} 39. Kc5 {[%emt 0:01:50]} Kd7 {[%emt 0:00:30]} 40. Ne4 {[%emt 0:02:37]} b6+ {[%emt 0:00:30]} 41. Kd4 {[%emt 0:00:16]} a5 {[%emt 0:02:30]} 42. Nc3 {[%emt 0:02:19]} Kc6 {[%emt 0:03:30]} 43. g4 {[%emt 0:00:56]} Nb5+ {[%emt 0:00:00]} 0-1

[Event "Marmaris Karya-13 IM 2022"]
[Site "Icmeler-Marmaris"]
[Date "2022.01.29"]
[Round "10.4"]
[White "Ozsakallioglu, Okan"]
[Black "Karadag, Eflatun Cem"]
[Result "1-0"]
[ECO "E05"]
[WhiteElo "2179"]
[BlackElo "1827"]
[Annotator "ChessBase"]
[PlyCount "77"]
[EventDate "2022.01.27"]
[EventType "schev"]
[EventCountry "TUR"]
[SourceTitle "playchess.com"]
[Source "ChessBase"]
[SourceQuality "1"]
[TimeControl "5400+30"]

1. Nf3 {[%emt 0:01:00]} d5 {[%emt 0:08:00]} 2. d4 {[%emt 0:18:30]} Nf6 {[%emt 0:02:30]} 3. c4 {[%emt 0:00:30]} e6 {[%emt 0:01:30]} 4. g3 {[%emt 0:00:00]} Be7 {[%emt 0:00:00]} 5. Bg2 {[%emt 0:00:00]} O-O {[%emt 0:00:00]} 6. O-O {[%emt 0:00:30]} dxc4 {[%emt 0:04:30]} 7. Qc2 {[%emt 0:00:00]} a6 {[%emt 0:00:30]} 8. a4 {[%emt 0:01:00]} Bd7 {[%emt 0:00:30]} 9. Qxc4 {[%emt 0:03:30]} Bc6 {[%emt 0:00:30]} 10. Nc3 {[%emt 0:02:30]} b5 {[%emt 0:01:30]} 11. Qd3 {[%emt 0:02:30]} b4 {[%emt 0:02:30]} 12. Nb1 {[%emt 0:00:30]} Be4 {[%emt 0:00:30]} 13. Qd1 {[%emt 0:00:00]} Nbd7 {[%emt 0:02:30]} 14. Nbd2 {[%emt 0:01:00]} Bb7 {[%emt 0:00:30]} 15. b3 {[%emt 0:01:30]} c5 {[%emt 0:00:30]} 16. Bb2 {[%emt 0:00:30]} Rc8 {[%emt 0:00:30]} 17. Rc1 {[%emt 0:00:30]} cxd4 {[%emt 0:00:30]} 18. Bxd4 {[%emt 0:03:30]} Rxc1 {[%emt 0:05:30]} 19. Qxc1 {[%emt 0:00:00]} Qa8 {[%emt 0:00:00]} 20. Qb2 {[%emt 0:01:00]} Rc8 {[%emt 0:02:00]} 21. Rc1 {[%emt 0:00:30]} Bc5 {[%emt 0:00:30]} 22. Bxc5 {[%emt 0:00:30]} Nxc5 {[%emt 0:04:30]} 23. Qd4 {[%emt 0:00:30]} Nce4 {[%emt 0:09:30]} 24. Rxc8+ {[%emt 0:00:30]} Qxc8 {[%emt 0:00:30]} 25. Qxb4 {[%emt 0:01:30]} Nc3 {[%emt 0:07:30]} 26. Bf1 {[%emt 0:02:30]} Ncd5 {[%emt 0:06:30]} 27. Qc4 {[%emt 0:00:30]} Qxc4 {[%emt 0:01:30]} 28. Nxc4 {[%emt 0:00:30]} Ne4 {[%emt 0:00:30]} 29. Nfd2 {[%emt 0:00:30]} Nxd2 {[%emt 0:00:30]} 30. Nxd2 {[%emt 0:00:30]} Kf8 {[%emt 0:00:30]} 31. Bg2 {[%emt 0:01:30]} Ke7 {[%emt 0:00:30]} 32. Nc4 {[%emt 0:00:00]} Bc6 {[%emt 0:01:30]} 33. Kf1 {[%emt 0:01:00]} f6 {[%emt 0:00:30]} 34. Ke1 {[%emt 0:00:30]} Kd7 {[%emt 0:02:30]} 35. Bxd5 {[%emt 0:00:30]} exd5 {[%emt 0:01:30]} 36. Na5 {[%emt 0:00:30]} Ba8 {[%emt 0:00:30]} 37. Kd2 {[%emt 0:00:30]} Ke6 {[%emt 0:02:30]} 38. b4 {[%emt 0:00:00]} Ke5 {[%emt 0:01:30]} 39. b5 1-0

[Event "Marmaris Karya-13 IM 2022"]
[Site "Icmeler-Marmaris"]
[Date "2022.01.30"]
[Round "10.4"]
[White "Boshra, Alshaeby"]
[Black "Ozsakallioglu, Okan"]
[Result "1/2-1/2"]
[ECO "B06"]
[WhiteElo "1974"]
[BlackElo "2179"]
[Annotator "ChessBase"]
[PlyCount "62"]
[EventDate "2022.01.27"]
[EventType "schev"]
[EventCountry "TUR"]
[SourceTitle "playchess.com"]
[Source "ChessBase"]
[SourceQuality "1"]
[TimeControl "5400+30"]

1. e4 {[%emt 0:01:00]} g6 {[%emt 0:01:00]} 2. d4 {[%emt 0:00:00]} Bg7 {[%emt 0:00:00]} 3. Nc3 {[%emt 0:00:00]} d6 {[%emt 0:00:00]} 4. Be3 {[%emt 0:00:30]} c6 {[%emt 0:00:30]} 5. a4 {[%emt 0:00:00]} Nd7 {[%emt 0:00:30]} 6. Nf3 {[%emt 0:01:00]} Ngf6 {[%emt 0:00:30]} 7. h3 {[%emt 0:00:30]} e5 {[%emt 0:00:30]} 8. dxe5 {[%emt 0:00:00]} dxe5 {[%emt 0:00:30]} 9. Bc4 {[%emt 0:01:00]} O-O {[%emt 0:00:30]} 10. Qd2 {[%emt 0:02:30]} Qe7 {[%emt 0:00:00]} 11. Qe2 {[%emt 0:21:30]} Nc5 {[%emt 0:04:00]} 12. Nd2 {[%emt 0:05:30]} Ne6 {[%emt 0:00:30]} 13. Bxe6 {[%emt 0:06:30]} Bxe6 {[%emt 0:03:30]} 14. Nb3 {[%emt 0:04:30]} b6 {[%emt 0:02:30]} 15. a5 {[%emt 0:00:00]} Nd7 {[%emt 0:00:30]} 16. O-O {[%emt 0:09:00]} f5 {[%emt 0:04:30]} 17. f3 {[%emt 0:00:30]} Qf7 {[%emt 0:00:30]} 18. Rfd1 {[%emt 0:01:30]} Nf6 {[%emt 0:04:30]} 19. axb6 {[%emt 0:01:30]} axb6 {[%emt 0:00:30]} 20. Bxb6 {[%emt 0:01:30]} Bxb3 {[%emt 0:00:30]} 21. cxb3 {[%emt 0:01:30]} Qxb3 {[%emt 0:00:30]} 22. Bc5 {[%emt 0:02:30]} Rxa1 {[%emt 0:00:00]} 23. Rxa1 {[%emt 0:00:30]} Re8 {[%emt 0:00:00]} 24. Ra3 {[%emt 0:00:30]} Qe6 {[%emt 0:00:30]} 25. b4 {[%emt 0:00:30]} Nh5 {[%emt 0:00:00]} 26. Qa2 {[%emt 0:03:30]} Nf4 {[%emt 0:00:00]} 27. Qxe6+ {[%emt 0:01:30]} Nxe6 {[%emt 0:00:30]} 28. Ra6 {[%emt 0:01:30]} Nd4 {[%emt 0:00:30]} 29. Kf2 {[%emt 0:02:30]} Bf8 {[%emt 0:00:30]} 30. Ne2 {[%emt 0:11:30]} fxe4 {[%emt 0:01:30]} 31. fxe4 {[%emt 0:01:30]} Nc2 {[%emt 0:00:30]} 1/2-1/2

[Event "Marmaris Karya-13 IM 2022"]
[Site "Icmeler-Marmaris"]
[Date "2022.01.29"]
[Round "10.5"]
[White "Ahmad, Al Khatib"]
[Black "Boshra, Alshaeby"]
[Result "1-0"]
[ECO "A49"]
[WhiteElo "2218"]
[BlackElo "1974"]
[Annotator "ChessBase"]
[PlyCount "65"]
[EventDate "2022.01.27"]
[EventType "schev"]
[EventCountry "TUR"]
[SourceTitle "playchess.com"]
[Source "ChessBase"]
[SourceQuality "1"]
[TimeControl "5400+30"]

1. d4 {[%emt 0:05:00]} Nf6 {[%emt 0:01:00]} 2. c4 {[%emt 0:00:00]} c5 {[%emt 0:00:00]} 3. Nf3 {[%emt 0:00:00]} g6 {[%emt 0:00:00]} 4. Nc3 {[%emt 0:00:30]} Bg7 {[%emt 0:00:30]} 5. g3 {[%emt 0:00:00]} O-O {[%emt 0:00:00]} 6. Bg2 {[%emt 0:00:00]} cxd4 {[%emt 0:00:00]} 7. Qxd4 {[%emt 0:00:30]} Nc6 {[%emt 0:00:30]} 8. Qh4 {[%emt 0:00:00]} Qa5 {[%emt 0:01:30]} 9. O-O {[%emt 0:00:00]} Qh5 {[%emt 0:00:30]} 10. Qxh5 {[%emt 0:00:30]} Nxh5 {[%emt 0:00:00]} 11. Bd2 {[%emt 0:00:30]} e6 {[%emt 0:00:00]} 12. Rfd1 {[%emt 0:00:00]} Nf6 {[%emt 0:00:00]} 13. Bf4 {[%emt 0:00:00]} d5 {[%emt 0:00:00]} 14. cxd5 {[%emt 0:00:30]} exd5 {[%emt 0:00:30]} 15. Ne5 {[%emt 0:00:00]} d4 {[%emt 0:00:00]} 16. Nxc6 {[%emt 0:00:00]} bxc6 {[%emt 0:00:00]} 17. Rxd4 {[%emt 0:00:30]} Nd5 {[%emt 0:00:30]} 18. Bxd5 {[%emt 0:00:30]} Bxd4 {[%emt 0:00:30]} 19. Bxc6 {[%emt 0:00:00]} Be6 {[%emt 0:00:00]} 20. Bxa8 {[%emt 0:00:00]} Rxa8 {[%emt 0:00:00]} 21. Rd1 {[%emt 0:00:30]} Rd8 {[%emt 0:00:30]} 22. Be5 {[%emt 0:00:00]} Bb6 {[%emt 0:00:30]} 23. Rxd8+ {[%emt 0:00:00]} Bxd8 {[%emt 0:00:00]} 24. b3 {[%emt 0:00:00]} a5 {[%emt 0:00:00]} 25. Bd4 {[%emt 0:00:00]} Kf8 {[%emt 0:00:30]} 26. f3 {[%emt 0:00:30]} Ke7 {[%emt 0:00:30]} 27. Kf2 {[%emt 0:00:00]} Bc7 {[%emt 0:00:00]} 28. e4 {[%emt 0:00:00]} f6 {[%emt 0:00:00]} 29. f4 {[%emt 0:00:30]} Bd6 {[%emt 0:00:30]} 30. Nd5+ {[%emt 0:00:00]} Bxd5 {[%emt 0:00:00]} 31. exd5 {[%emt 0:00:00]} Bb4 {[%emt 0:00:00]} 32. Ke3 {[%emt 0:00:30]} Kd7 {[%emt 0:00:00]} 33. Bxf6 1-0

[Event "Marmaris Karya-13 IM 2022"]
[Site "Icmeler-Marmaris"]
[Date "2022.01.30"]
[Round "10.5"]
[White "Haussernot, Cecile"]
[Black "Ahmad, Al Khatib"]
[Result "0-1"]
[ECO "B15"]
[WhiteElo "2188"]
[BlackElo "2218"]
[Annotator "ChessBase"]
[PlyCount "50"]
[EventDate "2022.01.27"]
[EventType "schev"]
[EventCountry "TUR"]
[SourceTitle "playchess.com"]
[Source "ChessBase"]
[SourceQuality "1"]
[TimeControl "5400+30"]

1. e4 {[%emt 0:11:00]} c6 {[%emt 0:01:00]} 2. d4 {[%emt 0:00:30]} d5 {[%emt 0:00:00]} 3. Nc3 {[%emt 0:00:30]} dxe4 {[%emt 0:00:00]} 4. Nxe4 {[%emt 0:00:00]} Nf6 {[%emt 0:00:30]} 5. Nxf6+ {[%emt 0:00:00]} exf6 {[%emt 0:00:00]} 6. c3 {[%emt 0:02:30]} Bd6 {[%emt 0:00:00]} 7. Bd3 {[%emt 0:05:30]} O-O {[%emt 0:00:30]} 8. Qc2 {[%emt 0:03:30]} Re8+ {[%emt 0:00:30]} 9. Be3 {[%emt 0:00:30]} h5 {[%emt 0:01:30]} 10. O-O-O {[%emt 0:02:30]} Be6 {[%emt 0:05:30]} 11. Kb1 {[%emt 0:01:30]} Nd7 {[%emt 0:04:30]} 12. Ne2 {[%emt 0:09:30]} Nf8 {[%emt 0:02:30]} 13. c4 {[%emt 0:11:30]} Rc8 {[%emt 0:08:30]} 14. h3 {[%emt 0:09:30]} b5 {[%emt 0:04:30]} 15. c5 {[%emt 0:02:30]} Bb8 {[%emt 0:00:30]} 16. g4 {[%emt 0:00:00]} Bd5 {[%emt 0:09:30]} 17. Rhg1 {[%emt 0:01:00]} h4 {[%emt 0:06:30]} 18. g5 {[%emt 0:01:30]} Bh2 {[%emt 0:02:30]} 19. Rg4 {[%emt 0:01:30]} Bf3 {[%emt 0:04:30]} 20. gxf6 {[%emt 0:02:30]} Qxf6 {[%emt 0:06:30]} 21. Bg5 {[%emt 0:01:30]} Qe6 {[%emt 0:04:30]} 22. Rxh4 {[%emt 0:00:30]} Ng6 {[%emt 0:02:30]} 23. d5 {[%emt 0:14:29]} cxd5 {[%emt 0:04:30]} 24. Rd2 {[%emt 0:01:35]} Nxh4 {[%emt 0:01:30]} 25. Bxh4 {[%emt 0:00:06]} Qh6 {[%emt 0:03:30]} 0-1